fUSD/lending_fUSD_20250716
["ID","MTS","AMOUNT","RATE_DAILY","PERIOD"]
[372609596,1752702650432,-992.68,0.00019671,2]
[372609597,1752702650442,-460.0,0.00019671,2]
[372609600,1752702650451,-460.0,0.00019671,2]
[372609602,1752702650462,-460.0,0.00019671,2]
[372609604,1752702650471,-460.0,0.00019671,2]
[372609606,1752702650481,-483.71,0.00019671,2]
[372609608,1752702650490,-460.0,0.00019671,2]
[372609610,1752702650499,-460.0,0.00019671,2]
[372609612,1752702650508,-460.0,0.00019671,2]
[372609614,1752702650518,-1034.23,0.00019671,2]
[372609616,1752702650527,-441.92867445,0.00019671,2]
[372609618,1752702650538,-480.99,0.00019671,2]
[372609619,1752702650547,-460.0,0.00019671,2]
[372609621,1752702650557,-579.63,0.00019671,2]
[372609623,1752702650566,-702.04,0.00019671,2]
[372609625,1752702650575,-460.0,0.00019671,2]
[372609627,1752702650585,-460.0,0.00019671,2]
[372609629,1752702650594,-460.0,0.00019671,2]
[372609632,1752702650604,-872.64,0.00019671,2]
[372609634,1752702650613,-460.0,0.00019671,2]
[372609636,1752702650622,-460.0,0.00019671,2]
[372609638,1752702650631,-460.0,0.00019671,2]
[372609640,1752702650641,-788.74,0.00019671,2]
[372609642,1752702650650,-460.0,0.00019671,2]
[372609644,1752702650660,-460.0,0.00019671,2]
[372609646,1752702650670,-460.0,0.00019671,2]
[372609648,1752702650679,-460.0,0.00019671,2]
[372609650,1752702650689,-460.0,0.00019671,2]
[372609652,1752702650699,-1474.22,0.00019671,2]
[372609654,1752702650708,-578.76,0.00019671,2]
[372609656,1752702650718,-460.0,0.00019671,2]
[372609658,1752702650727,-628.97,0.00019671,2]
[372609659,1752702650736,-460.0,0.00019671,2]
[372609661,1752702650747,-904.98,0.00019671,2]
[372609664,1752702650757,-460.0,0.00019671,2]
[372609666,1752702650766,-460.0,0.00019671,2]
[372609667,1752702650775,-924.09,0.00019671,2]
[372609670,1752702650785,-580.46,0.00019671,2]
[372609672,1752702650794,-460.0,0.00019671,2]
[372609673,1752702650804,-460.0,0.00019671,2]
[372609675,1752702650813,-460.0,0.00019671,2]
[372609677,1752702650823,-798.05,0.00019671,2]
[372609679,1752702650832,-460.0,0.00019671,2]
[372609681,1752702650841,-460.0,0.00019671,2]
[372609684,1752702650851,-460.0,0.00019671,2]
[372609685,1752702650861,-460.0,0.00019671,2]
[372609687,1752702650870,-460.0,0.00019671,2]
[372609690,1752702650880,-460.0,0.00019671,2]
[372609692,1752702650889,-734.88,0.00019671,2]
[372609693,1752702650899,-460.0,0.00019671,2]
[372609695,1752702650909,-481.97,0.00019671,2]
[372609697,1752702650919,-519.47,0.00019671,2]
[372609699,1752702650928,-460.0,0.00019671,2]
[372609701,1752702650939,-460.0,0.00019671,2]
[372609704,1752702650951,-512.28062699,0.00019671,2]
[372609706,1752702650962,-460.0,0.00019671,2]
[372609707,1752702650972,-460.0,0.00019671,2]
[372609709,1752702650982,-535.23,0.00019671,2]
[372609712,1752702650992,-460.0,0.00019671,2]
[372609714,1752702651003,-494.1,0.00019671,2]
[372609716,1752702651014,-2186.89,0.00019671,2]
[372609718,1752702651024,-460.0,0.00019671,2]
[372609720,1752702651033,-782.28,0.00019671,2]
[372609722,1752702651043,-460.0,0.00019671,2]
[372609724,1752702651053,-460.0,0.00019671,2]
[372609726,1752702651063,-642.15,0.00019671,2]
[372609728,1752702651073,-566.19,0.00019671,2]
[372609729,1752702651082,-460.0,0.00019671,2]
[372609731,1752702651092,-815.95,0.00019671,2]
[372609733,1752702651102,-1265.23,0.00019671,2]
[372609736,1752702651112,-1055.01,0.00019671,2]
[372609771,1752702651440,-460.0,0.00019671,2]
[372609773,1752702651451,-722.41,0.00019671,2]
[372609775,1752702651460,-460.0,0.00019671,2]
[372609777,1752702651470,-460.0,0.00019671,2]
[372609779,1752702651480,-1392.9,0.00019671,2]
[372609781,1752702651490,-590.36,0.00019671,2]
[372609783,1752702651499,-6095.44,0.00019671,2]
[372609785,1752702651509,-460.0,0.00019671,2]
[372609787,1752702651518,-460.0,0.00019671,2]
[372609789,1752702651528,-460.0,0.00019671,2]
[372609791,1752702651537,-696.63,0.00019671,2]
[372609793,1752702651548,-460.0,0.00019671,2]
[372609795,1752702651557,-460.0,0.00019671,2]
[372609797,1752702651566,-599.01,0.00019671,2]
[372609799,1752702651575,-460.0,0.00019671,2]
[372609801,1752702651585,-460.0,0.00019671,2]
[372609802,1752702651594,-302.39929929,0.00019671,2]
[372609803,1752702651603,-1173.21,0.00019671,2]
[372609804,1752702651613,-460.0,0.00019671,2]
[372609805,1752702651622,-6203.94,0.00019671,2]
[372609806,1752702651632,-460.0,0.00019671,2]
[372609807,1752702651642,-1451.68,0.00019671,2]
[372609808,1752702651651,-752.01,0.00019671,2]
[372609809,1752702651661,-460.0,0.00019671,2]
[372609810,1752702651670,-460.0,0.00019671,2]
[372609811,1752702651680,-460.0,0.00019671,2]
[372609812,1752702651689,-1191.56,0.00019671,2]
[372609814,1752702651699,-460.0,0.00019671,2]
[372609816,1752702651708,-499.7,0.00019671,2]
[372609818,1752702651718,-2251.98,0.00019671,2]
[372609820,1752702651727,-1115.14,0.00019671,2]
[372609822,1752702651736,-460.0,0.00019671,2]
[372609824,1752702651746,-460.0,0.00019671,2]
[372609826,1752702651755,-674.0,0.00019671,2]
[372609828,1752702651765,-601.02,0.00019671,2]
[372609830,1752702651774,-719.17,0.00019671,2]
[372609832,1752702651783,-460.0,0.00019671,2]
[372609834,1752702651793,-1143.34,0.00019671,2]
[372609836,1752702651802,-219.72429541,0.00019671,2]
[372609838,1752702651811,-460.0,0.00019671,2]
[372609840,1752702651821,-460.0,0.00019671,2]
[372609842,1752702651830,-460.0,0.00019671,2]
[372609844,1752702651840,-1146.42,0.00019671,2]
[372609846,1752702651849,-460.0,0.00019671,2]
[372609848,1752702651859,-812.11,0.00019671,2]
[372609850,1752702651869,-460.0,0.00019671,2]
[372609852,1752702651879,-151.0,0.00019671,2]
[372609854,1752702651889,-983.72,0.00019671,2]
[372609856,1752702651899,-460.0,0.00019671,2]
[372609858,1752702651908,-1271.97,0.00019671,2]
[372609860,1752702651918,-1059.38,0.00019671,2]
[372609862,1752702651927,-151.0,0.00019671,2]
[372609864,1752702651937,-940.51,0.00019671,2]
[372609866,1752702651946,-460.0,0.00019671,2]
[372609868,1752702651955,-151.0,0.00019671,2]
[372609870,1752702651964,-151.0,0.00019671,2]
[372609872,1752702651974,-2646.13,0.00019671,2]
[372609874,1752702651983,-151.0,0.00019671,2]
[372609876,1752702651992,-151.0,0.00019671,2]
[372609878,1752702652001,-1384.32,0.00019671,2]
[372609880,1752702652011,-151.0,0.00019671,2]
[372609882,1752702652020,-151.0,0.00019671,2]
[372609884,1752702652029,-151.0,0.00019671,2]
[372609885,1752702652039,-1466.48,0.00019671,2]
[372609887,1752702652048,-1354.44,0.00019671,2]
[372609890,1752702652058,-756.0,0.00019671,2]
[372609892,1752702652067,-679.14,0.00019671,2]
[372609894,1752702652077,-151.0,0.00019671,2]
[372609896,1752702652086,-151.0,0.00019671,2]
[372609898,1752702652096,-151.0,0.00019671,2]
[372609900,1752702652105,-151.0,0.00019671,2]
[372609902,1752702652115,-151.0,0.00019671,2]
[372609903,1752702652124,-151.0,0.00019671,2]
[372609906,1752702652133,-460.0,0.00019671,2]
[372609908,1752702652143,-578.21,0.00019671,2]
[372609909,1752702652152,-1247.7,0.00019671,2]
[372609911,1752702652166,-460.0,0.00019671,2]
[372609913,1752702652175,-645.52834518,0.00019673,2]
[372609915,1752702652185,-331.91813433,0.00019673,2]
[372609917,1752702652195,-626.08881258,0.00019673,2]
[372609919,1752702652206,-500.0,0.00019673,2]
[372609921,1752702652215,-500.0,0.00019673,2]
[372609924,1752702652226,-500.0,0.00019673,2]
[372609926,1752702652238,-500.0,0.00019673,2]
[372609928,1752702652248,-231.24889856,0.00019673,2]
[372609930,1752702652257,-500.0,0.00019673,2]
[372609932,1752702652266,-500.0,0.00019673,2]
[372609934,1752702652276,-507.97198239,0.00019673,2]
[372609936,1752702652285,-168.0,0.00019681,2]
[372609938,1752702652296,-1000.0,0.00019694,2]
[372609940,1752702652307,-249.77469094,0.00019698,2]
[372609941,1752702652317,-500.0,0.000197,2]
[372609944,1752702652327,-1000.0,0.000197,2]
[372609946,1752702652337,-1000.0,0.000197,2]
[372609948,1752702652347,-9400.0,0.000197,7]
[372609950,1752702652358,-8122.28,0.000197,2]
[372609951,1752702652368,-300.0,0.00019707,2]
[372609953,1752702652377,-182.56848767,0.00019708,2]
[372609956,1752702652387,-466.37803612,0.00019708,2]
[372609958,1752702652397,-461.42361767,0.00019708,2]
[372609959,1752702652407,-460.0,0.00019708,2]
[372609961,1752702652417,-369.62438175,0.00019708,2]
[372609963,1752702652426,-460.0,0.00019708,2]
[372609965,1752702652436,-537.78,0.00019708,2]
[372609967,1752702652445,-464.57758442,0.00019708,2]
[372609969,1752702652455,-460.0,0.00019708,2]
[372609971,1752702652464,-460.0,0.00019708,2]
[372609973,1752702652474,-460.0,0.00019708,2]
[372609975,1752702652483,-460.0,0.00019708,2]
[372609977,1752702652494,-460.0,0.00019708,2]
[372609979,1752702652503,-460.0,0.00019708,2]
[372609981,1752702652513,-460.0,0.00019708,2]
[372609983,1752702652522,-460.0,0.00019708,2]
[372609985,1752702652532,-156.89157896,0.00019708,2]
[372609988,1752702652543,-460.0,0.00019708,2]
[372609990,1752702652552,-460.0,0.00019708,2]
[372609992,1752702652561,-460.0,0.00019708,2]
[372609994,1752702652571,-972.73,0.00019708,2]
[372609996,1752702652580,-460.0,0.00019708,2]
[372609998,1752702652589,-467.05341843,0.00019708,2]
[372610000,1752702652599,-460.0,0.00019708,2]
[372610002,1752702652608,-276.96989147,0.00019708,2]
[372610004,1752702652618,-460.0,0.00019708,2]
[372610006,1752702652627,-460.0,0.00019708,2]
[372610008,1752702652636,-500.0,0.00019708,5]
[372610010,1752702652646,-460.0,0.00019708,2]
[372610012,1752702652655,-426.29181354,0.00019708,2]
[372610014,1752702652664,-460.0,0.00019708,2]
[372610016,1752702652674,-464.45640183,0.00019708,2]
[372610018,1752702652683,-731.41,0.00019708,2]
[372610020,1752702652692,-460.0,0.00019708,2]
[372610022,1752702652702,-568.6,0.00019708,2]
[372610024,1752702652712,-460.0,0.00019708,2]
[372610026,1752702652721,-460.0,0.00019708,2]
[372610028,1752702652731,-460.0,0.00019708,2]
[372610030,1752702652741,-460.0,0.00019708,2]
[372610032,1752702652750,-460.0,0.00019708,2]
[372610034,1752702652759,-433.44552841,0.00019708,2]
[372610036,1752702652769,-460.0,0.00019708,2]
[372610038,1752702652778,-460.0,0.00019708,2]
[372610040,1752702652788,-460.0,0.00019708,2]
[372610042,1752702652797,-541.7,0.00019708,2]
[372610044,1752702652806,-460.0,0.00019708,2]
[372610046,1752702652816,-460.0,0.00019708,2]
[372610048,1752702652825,-460.0,0.00019708,2]
[372610050,1752702652834,-1051.81,0.00019708,2]
[372610052,1752702652843,-460.0,0.00019708,2]
[372610054,1752702652853,-584.98,0.00019708,2]
[372610056,1752702652863,-460.0,0.00019708,2]
[372610058,1752702652872,-460.0,0.00019708,2]
[372610060,1752702652881,-460.0,0.00019708,2]
[372610062,1752702652891,-205.7772465,0.00019708,2]
[372610064,1752702652900,-514.65607845,0.00019708,2]
[372610066,1752702652909,-464.75,0.00019708,2]
[372610068,1752702652918,-460.0,0.00019708,2]
[372610070,1752702652928,-460.0,0.00019708,2]
[372610072,1752702652937,-460.0,0.00019708,2]
[372610074,1752702652947,-460.0,0.00019708,2]
[372610076,1752702652956,-531.92,0.00019708,2]
[372610078,1752702652965,-460.0,0.00019708,2]
[372610080,1752702652975,-460.0,0.00019708,2]
[372610082,1752702652985,-460.0,0.00019708,2]
[372610084,1752702652995,-686.24,0.00019708,2]
[372610086,1752702653008,-489.93,0.00019708,2]
[372610088,1752702653017,-460.0,0.00019708,2]
[372610090,1752702653027,-460.0,0.00019708,2]
[372610092,1752702653036,-460.0,0.00019708,2]
[372610094,1752702653046,-460.0,0.00019708,2]
[372610096,1752702653055,-460.0,0.00019708,2]
[372610098,1752702653064,-460.0,0.00019708,2]
[372610100,1752702653074,-477.11,0.00019708,2]
[372610102,1752702653084,-460.0,0.00019708,2]
[372610104,1752702653093,-460.0,0.00019708,2]
[372610106,1752702653103,-460.0,0.00019708,2]
[372610108,1752702653113,-567.85,0.00019708,2]
[372610110,1752702653125,-520.68,0.00019708,2]
[372610112,1752702653135,-478.5,0.00019708,2]
[372610114,1752702653145,-460.0,0.00019708,2]
[372610116,1752702653154,-1446.34,0.00019708,2]
[372610118,1752702653168,-1383.34,0.00019708,2]
[372610120,1752702653178,-460.0,0.00019708,2]
[372610122,1752702653188,-460.0,0.00019708,2]
[372610124,1752702653198,-1631.982889,0.00019708,2]
[372610126,1752702653210,-882.25,0.00019708,2]
[372610129,1752702653220,-460.0,0.00019708,2]
[372610131,1752702653231,-1712.027377,0.00019708,2]
[372610133,1752702653242,-460.0,0.00019708,2]
[372610135,1752702653253,-1731.050355,0.00019708,2]
[372610137,1752702653263,-460.0,0.00019708,2]
[372610138,1752702653272,-460.0,0.00019708,2]
[372610140,1752702653282,-1647.21,0.00019708,2]
[372610142,1752702653293,-460.0,0.00019708,2]
[372610144,1752702653302,-460.0,0.00019708,2]
[372610146,1752702653311,-460.0,0.00019708,2]
[372610148,1752702653321,-460.0,0.00019708,2]
[372610150,1752702653331,-460.0,0.00019708,2]
[372610152,1752702653340,-460.0,0.00019708,2]
[372610154,1752702653350,-460.0,0.00019708,2]
[372610156,1752702653360,-460.0,0.00019708,2]
[372610158,1752702653370,-170.62298914,0.00019708,2]
[372610161,1752702653381,-460.0,0.00019708,2]
[372610163,1752702653390,-460.0,0.00019708,2]
[372610164,1752702653400,-465.06985259,0.00019708,2]
[372610167,1752702653410,-481.33,0.00019708,2]
[372610168,1752702653420,-1135.09,0.00019708,2]
[372610170,1752702653429,-517.89303718,0.00019708,2]
[372610172,1752702653439,-567.6,0.00019708,2]
[372610174,1752702653448,-460.0,0.00019708,2]
[372610176,1752702653458,-531.29,0.00019708,2]
[372610178,1752702653467,-1247.57,0.00019708,2]
[372610180,1752702653477,-531.94,0.00019708,2]
[372610182,1752702653486,-594.65,0.00019708,2]
[372610184,1752702653496,-653.41,0.00019708,2]
[372610186,1752702653505,-462.76437137,0.00019708,2]
[372610188,1752702653514,-460.0,0.00019708,2]
[372610190,1752702653523,-460.0,0.00019708,2]
[372610192,1752702653532,-1199.89,0.00019708,2]
[372610194,1752702653542,-460.0,0.00019708,2]
[372610196,1752702653552,-460.0,0.00019708,2]
[372610198,1752702653562,-460.0,0.00019708,2]
[372610200,1752702653571,-898.17,0.00019708,2]
[372610202,1752702653580,-460.0,0.00019708,2]
[372610204,1752702653590,-460.0,0.00019708,2]
[372610206,1752702653600,-840.08,0.00019708,2]
[372610208,1752702653610,-460.0,0.00019708,2]
[372610210,1752702653619,-460.0,0.00019708,2]
[372610212,1752702653629,-460.0,0.00019708,2]
[372610214,1752702653639,-585.57,0.00019708,2]
[372610216,1752702653648,-556.99,0.00019708,2]
[372610218,1752702653658,-460.0,0.00019708,2]
[372610220,1752702653667,-460.0,0.00019708,2]
[372610222,1752702653677,-1003.41,0.00019708,2]
[372610224,1752702653687,-460.0,0.00019708,2]
[372610226,1752702653696,-2215.62,0.00019708,2]
[372610228,1752702653706,-460.0,0.00019708,2]
[372610231,1752702653716,-460.0,0.00019708,2]
[372610233,1752702653725,-460.0,0.00019708,2]
[372610235,1752702653735,-460.0,0.00019708,2]
[372610237,1752702653744,-901.27,0.00019708,2]
[372610248,1752702653843,-460.0,0.00019708,2]
[372610250,1752702653853,-460.0,0.00019708,2]
[372610252,1752702653863,-1051.13,0.00019708,2]
[372610254,1752702653872,-460.0,0.00019708,2]
[372610256,1752702653882,-470.37,0.00019708,2]
[372610258,1752702653891,-460.0,0.00019708,2]
[372610260,1752702653900,-852.86,0.00019708,2]
[372610262,1752702653910,-2329.41,0.00019708,2]
[372610264,1752702653919,-500.83,0.00019708,2]
[372610266,1752702653928,-460.0,0.00019708,2]
[372610268,1752702653938,-460.0,0.00019708,2]
[372610270,1752702653948,-1186.99,0.00019708,2]
[372610272,1752702653958,-460.0,0.00019708,2]
[372610274,1752702653967,-504.7,0.00019708,2]
[372610276,1752702653978,-460.0,0.00019708,2]
[372610278,1752702653987,-1119.55,0.00019708,2]
[372610280,1752702653997,-543.92,0.00019708,2]
[372610282,1752702654006,-1996.08,0.00019708,2]
[372610284,1752702654015,-460.0,0.00019708,2]
[372610286,1752702654024,-460.0,0.00019708,2]
[372610288,1752702654034,-1040.54,0.00019708,2]
[372610290,1752702654043,-625.32,0.00019708,2]
[372610292,1752702654053,-460.0,0.00019708,2]
[372610294,1752702654063,-1059.2,0.00019708,2]
[372610296,1752702654072,-853.12,0.00019708,2]
[372610298,1752702654081,-460.0,0.00019708,2]
[372610300,1752702654091,-460.0,0.00019708,2]
[372610302,1752702654100,-598.93,0.00019708,2]
[372610304,1752702654110,-460.0,0.00019708,2]
[372610306,1752702654120,-467.41,0.00019708,2]
[372610308,1752702654130,-460.0,0.00019708,2]
[372610310,1752702654139,-460.0,0.00019708,2]
[372610312,1752702654148,-2253.67,0.00019708,2]
[372610314,1752702654163,-460.0,0.00019708,2]
[372610316,1752702654172,-460.0,0.00019708,2]
[372610318,1752702654181,-502.04,0.00019708,2]
[372610320,1752702654191,-751.9,0.00019708,2]
[372610322,1752702654200,-1149.0,0.00019708,2]
[372610324,1752702654210,-490.0,0.00019708,2]
[372610326,1752702654219,-460.0,0.00019708,2]
[372610328,1752702654228,-460.0,0.00019708,2]
[372610330,1752702654240,-750.86,0.00019708,2]
[372610331,1752702654249,-460.0,0.00019708,2]
[372610332,1752702654258,-460.0,0.00019708,2]
[372610333,1752702654267,-460.0,0.00019708,2]
[372610334,1752702654276,-530.46,0.00019708,2]
[372610335,1752702654285,-460.0,0.00019708,2]
[372610336,1752702654295,-953.78,0.00019708,2]
[372610337,1752702654304,-460.0,0.00019708,2]
[372610338,1752702654313,-460.0,0.00019708,2]
[372610339,1752702654322,-460.0,0.00019708,2]
[372610340,1752702654332,-790.77,0.00019708,2]
[372610341,1752702654341,-460.0,0.00019708,2]
[372610343,1752702654350,-460.0,0.00019708,2]
[372610345,1752702654359,-487.91,0.00019708,2]
[372610347,1752702654368,-844.82,0.00019708,2]
[372610349,1752702654377,-460.0,0.00019708,2]
[372610351,1752702654387,-1433.11,0.00019708,2]
[372610353,1752702654396,-460.0,0.00019708,2]
[372610355,1752702654405,-460.0,0.00019708,2]
[372610357,1752702654414,-1307.34,0.00019708,2]
[372610358,1752702654424,-460.0,0.00019708,2]
[372610360,1752702654433,-460.0,0.00019708,2]
[372610362,1752702654442,-1156.86,0.00019708,2]
[372610365,1752702654454,-460.0,0.00019708,2]
[372610367,1752702654463,-460.0,0.00019708,2]
[372610369,1752702654472,-460.0,0.00019708,2]
[372610371,1752702654481,-626.85,0.00019708,2]
[372610373,1752702654491,-635.06,0.00019708,2]
[372610374,1752702654500,-460.0,0.00019708,2]
[372610376,1752702654509,-460.0,0.00019708,2]
[372610378,1752702654518,-462.38,0.00019708,2]
[372610381,1752702654528,-740.87,0.00019708,2]
[372610382,1752702654537,-476.7,0.00019708,2]
[372610384,1752702654548,-578.11,0.00019708,2]
[372610386,1752702654558,-3387.25,0.00019708,2]
[372610388,1752702654567,-460.0,0.00019708,2]
[372610391,1752702654577,-460.0,0.00019708,2]
[372610393,1752702654586,-577.93,0.00019708,2]
[372610394,1752702654595,-730.55,0.00019708,2]
[372610396,1752702654605,-1531.36,0.00019708,2]
[372610398,1752702654614,-460.0,0.00019708,2]
[372610400,1752702654623,-460.0,0.00019708,2]
[372610402,1752702654633,-460.0,0.00019708,2]
[372610404,1752702654642,-460.0,0.00019708,2]
[372610406,1752702654651,-502.4,0.00019708,2]
[372610409,1752702654661,-1402.8,0.00019708,2]
[372610411,1752702654670,-460.0,0.00019708,2]
[372610413,1752702654679,-460.0,0.00019708,2]
[372610414,1752702654689,-463.01975291,0.00019708,2]
[372610416,1752702654698,-460.0,0.00019708,2]
[372610418,1752702654707,-651.94,0.00019708,2]
[372610420,1752702654717,-460.0,0.00019708,2]
[372610422,1752702654727,-1255.88,0.00019708,2]
[372610424,1752702654736,-707.42,0.00019708,2]
[372610426,1752702654745,-494.88,0.00019708,2]
[372610428,1752702654754,-460.0,0.00019708,2]
[372610431,1752702654764,-507.34,0.00019708,2]
[372610432,1752702654774,-1059.09,0.00019708,2]
[372610435,1752702654783,-523.62,0.00019708,2]
[372610437,1752702654793,-460.0,0.00019708,2]
[372610438,1752702654804,-580.29,0.00019708,2]
[372610440,1752702654814,-460.0,0.00019708,2]
[372610442,1752702654823,-460.0,0.00019708,2]
[372610444,1752702654833,-460.0,0.00019708,2]
[372610446,1752702654843,-460.0,0.00019708,2]
[372610449,1752702654852,-460.0,0.00019708,2]
[372610450,1752702654862,-460.0,0.00019708,2]
[372610453,1752702654872,-460.0,0.00019708,2]
[372610454,1752702654882,-496.18,0.00019708,2]
[372610457,1752702654892,-614.56,0.00019708,2]
[372610458,1752702654901,-793.31,0.00019708,2]
[372610460,1752702654911,-460.0,0.00019708,2]
[372610463,1752702654920,-460.0,0.00019708,2]
[372610464,1752702654930,-460.0,0.00019708,2]
[372610466,1752702654939,-460.0,0.00019708,2]
[372610469,1752702654949,-696.21,0.00019708,2]
[372610471,1752702654958,-460.0,0.00019708,2]
[372610472,1752702654968,-566.21,0.00019708,2]
[372610474,1752702654977,-746.87,0.00019708,2]
[372610476,1752702654986,-460.0,0.00019708,2]
[372610478,1752702654995,-460.0,0.00019708,2]
[372610480,1752702655005,-1046.67,0.00019708,2]
[372610482,1752702655015,-479.86,0.00019708,2]
[372610484,1752702655024,-460.0,0.00019708,2]
[372610486,1752702655034,-460.0,0.00019708,2]
[372610488,1752702655044,-757.81,0.00019708,2]
[372610490,1752702655053,-315.19504168,0.00019708,2]
[372610492,1752702655063,-460.0,0.00019708,2]
[372610494,1752702655072,-555.52,0.00019708,2]
[372610496,1752702655080,-460.0,0.00019708,2]
[372610498,1752702655089,-460.0,0.00019708,2]
[372610500,1752702655098,-3956.59,0.00019708,2]
[372610502,1752702655108,-460.0,0.00019708,2]
[372610504,1752702655117,-460.0,0.00019708,2]
[372610506,1752702655126,-513.69,0.00019708,2]
[372610508,1752702655135,-460.0,0.00019708,2]
[372610510,1752702655144,-523.98,0.00019708,2]
[372610512,1752702655154,-460.0,0.00019708,2]
[372610514,1752702655168,-460.0,0.00019708,2]
[372610516,1752702655177,-460.0,0.00019708,2]
[372610518,1752702655186,-460.0,0.00019708,2]
[372610520,1752702655195,-460.0,0.00019708,2]
[372610522,1752702655204,-484.38,0.00019708,2]
[372610524,1752702655214,-753.95,0.00019708,2]
[372610526,1752702655223,-460.0,0.00019708,2]
[372610528,1752702655233,-460.0,0.00019708,2]
[372610530,1752702655242,-460.0,0.00019708,2]
[372610532,1752702655251,-556.2,0.00019708,2]
[372610534,1752702655260,-24286.06,0.00019708,2]
[372610536,1752702655270,-581.48,0.00019708,2]
[372610538,1752702655279,-460.0,0.00019708,2]
[372610540,1752702655290,-761.25,0.00019708,2]
[372610542,1752702655299,-460.0,0.00019708,2]
[372610544,1752702655313,-517.87,0.00019708,2]
[372610546,1752702655323,-460.0,0.00019708,2]
[372610548,1752702655333,-4530.56,0.00019708,2]
[372610550,1752702655343,-2344.03,0.00019708,2]
[372610552,1752702655352,-854.73,0.00019708,2]
[372610554,1752702655362,-460.0,0.00019708,2]
[372610556,1752702655372,-473.19,0.00019708,2]
[372610558,1752702655382,-460.0,0.00019708,2]
[372610560,1752702655392,-460.0,0.00019708,2]
[372610562,1752702655402,-460.0,0.00019708,2]
[372610565,1752702655412,-1097.87,0.00019708,2]
[372610566,1752702655421,-460.0,0.00019708,2]
[372610568,1752702655431,-460.0,0.00019708,2]
[372610571,1752702655441,-3528.54,0.00019708,2]
[372610573,1752702655451,-460.0,0.00019708,2]
[372610575,1752702655461,-460.0,0.00019708,2]
[372610577,1752702655471,-460.0,0.00019708,2]
[372610579,1752702655480,-4607.45,0.00019708,2]
[372610581,1752702655489,-460.0,0.00019708,2]
[372610582,1752702655499,-3969.1,0.00019708,2]
[372610585,1752702655509,-460.0,0.00019708,2]
[372610586,1752702655518,-460.0,0.00019708,2]
[372610589,1752702655528,-918.2,0.00019708,2]
[372610590,1752702655538,-915.29,0.00019708,2]
[372610592,1752702655547,-1602.32,0.00019708,2]
[372610594,1752702655557,-460.0,0.00019708,2]
[372610596,1752702655567,-460.0,0.00019708,2]
[372610598,1752702655576,-460.0,0.00019708,2]
[372610600,1752702655586,-460.0,0.00019708,2]
[372610602,1752702655595,-1151.05,0.00019708,2]
[372610604,1752702655604,-460.0,0.00019708,2]
[372610606,1752702655614,-460.0,0.00019708,2]
[372610608,1752702655623,-548.86,0.00019708,2]
[372610610,1752702655633,-1683.91,0.00019708,2]
[372610612,1752702655642,-433.92969841,0.00019708,2]
[372610614,1752702655652,-10676.09,0.00019708,2]